fUSD/lending_fUSD_20250228
["ID","MTS","AMOUNT","RATE_DAILY","PERIOD"]
[354789770,1740701288577,-150.0,0.00014899,2]
[354789771,1740701288600,-7520.0,0.000149,2]
[354789773,1740701308251,-300.0,0.000149,2]
[354789827,1740701431659,-150.0,0.00014899,2]
[354789828,1740701431669,-300.0,0.00014899,2]
[354789829,1740701431679,-63.9004,0.000149,2]
[354789830,1740701431688,-4602.99318256,0.000149,2]
[354789831,1740701431700,-8373.38716721,0.000149,2]
[354789832,1740701431762,-804.15942572,0.000149,2]
[354789901,1740701439747,-810.01500001,0.000149,2]
[354789928,1740701869099,12079.1155,0.000148,2]
[354789930,1740702037242,312.9035,0.000148,2]
[354789931,1740702046631,241.2747,0.000148,2]
[354789932,1740702058892,696.6516,0.000148,2]
[354790028,1740702631789,-1000.0,0.00014899,2]
[354790029,1740702631798,-450.0,0.00014899,2]
[354790030,1740702631808,-216.0,0.00014899,2]
[354790031,1740702631818,-150.0,0.00014899,2]
[354790032,1740702631827,-5358.59119563,0.000149,2]
[354790051,1740702637687,-22831.34429859,0.000149,2]
[354790052,1740702637696,-500.0,0.000149,2]
[354790053,1740702637706,-17242.93922435,0.000149,2]
[354790054,1740702637813,-12015.65175931,0.000149,2]
[354790055,1740702637826,-12330.9255,0.000149,2]
[354790056,1740702637840,-44247.41081634,0.000149,2]
[354790057,1740702637849,-1302.0802,0.000149,2]
[354790058,1740702637858,-390.7308,0.000149,2]
[354790059,1740702637868,-4085.3692,0.000149,2]
[354790060,1740702637878,-586.75506786,0.000149,2]
[354790061,1740702637887,-2500.0,0.000149,2]
[354790062,1740702637896,-265.85617017,0.000149,2]
[354790120,1740702645288,-823.78370028,0.000149,2]
[354790121,1740702645299,-263.36058375,0.000149,2]
[354790122,1740702645308,-413.60140625,0.000149,2]
[354790134,1740702645950,-1513.18387593,0.000149,2]
[354790135,1740702645960,-220.89454763,0.00014973,2]
[354790136,1740702645969,-151.22459796,0.00014973,2]
[354790137,1740702645979,-500.82321177,0.00014973,2]
[354790138,1740702645988,-1013.99778671,0.0001499,2]
[354790139,1740702646059,-1125.96221329,0.0001499,2]
[354790140,1740702646068,-834.68778671,0.0001499,2]
[354790141,1740702646079,-1305.27221329,0.0001499,2]
[354790142,1740702646090,-500.0,0.00014999,2]
[354790143,1740702646101,-176.41558085,0.00014999,2]
[354790144,1740702646111,-543.77956044,0.00014999,2]
[354790145,1740702646122,-500.0,0.00014999,2]
[354790146,1740702646131,-8232.93400281,0.00015,2]
[354790147,1740702646170,-5510.1542467,0.00015,2]
[354790148,1740702646182,-1602.93982603,0.00015,2]
[354790149,1740702646227,-3488.20500103,0.00015,2]
[354790178,1740702894737,-150.0,0.00014899,2]
[354790179,1740702894761,-9850.0,0.000149,2]
[354790180,1740702895910,-10000.0,0.000149,2]
[354790181,1740702896304,-10000.0,0.000149,2]
[354790182,1740702896710,-10000.0,0.000149,2]
[354790183,1740702897078,-10000.0,0.000149,2]
[354790184,1740702897398,-10000.0,0.000149,2]
[354790185,1740702897767,-10000.0,0.000149,2]
[354790186,1740702898217,-10000.0,0.000149,2]
[354790187,1740702898522,-5986.9273,0.000149,2]
[354790188,1740702898546,-500.0,0.000149,2]
[354790189,1740702898567,-1000.0,0.000149,2]
[354790190,1740702898593,-153.78723676,0.000149,2]
[354790191,1740702898613,-770.1875,0.000149,2]
[354790192,1740702898634,-317.01289798,0.000149,2]
[354790193,1740702898658,-450.0,0.0001495,2]
[354790194,1740702898681,-822.08506526,0.00014999,5]
[354790195,1740702898897,-303.49528355,0.00014999,5]
[354790196,1740702898919,-554.0,0.00015,2]
[354790197,1740702898942,-9142.50471645,0.00015,2]
[354790198,1740702899306,-10000.0,0.00015,2]
[354790199,1740702899643,-10000.0,0.00015,2]
[354790200,1740702900053,-10000.0,0.00015,2]
[354790201,1740702900381,-10000.0,0.00015,2]
[354790202,1740702900724,-10000.0,0.00015,2]
[354790203,1740702901522,-10000.0,0.00015,2]
[354790204,1740702902130,-528.07956102,0.000149,2]
[354790205,1740702902153,-9471.92043898,0.00015,2]
[354790206,1740702903518,-10000.0,0.00015,2]
[354790207,1740702909706,-5552.0,0.00015,2]
[354790208,1740702961447,163.9823994,0.00014699,2]
[354790210,1740702969779,3979.2436,0.000148,2]
[354790211,1740703006510,163.9823994,0.00014699,2]
[354790212,1740703051452,163.9823994,0.00014699,2]
[354790213,1740703109646,362.325,0.000147,2]
[354790215,1740703430743,250.0,0.00014743,2]
[354790255,1740703836022,-150.0,0.00014893,2]
[354790256,1740703836031,-150.0,0.00014896,2]
[354790257,1740703836040,-150.0,0.00014899,2]
[354790258,1740703836049,-2205.0,0.000149,2]
[354790259,1740703836076,-12862.1204504,0.000149,2]
[354790260,1740703836133,-13371.3877496,0.000149,2]
[354790261,1740703836142,-485.76114736,0.000149,2]
[354790262,1740703836151,-500.0,0.000149,2]
[354790263,1740703836160,-1561.29911387,0.000149,2]
[354790264,1740703836170,-165.87548582,0.000149,2]
[354790265,1740703836179,-2500.0,0.000149,2]
[354790266,1740703836189,-150.0,0.00014987,2]
[354790267,1740703836199,-501.0,0.00015,2]
[354790268,1740703836209,-47237.22055529,0.00015,2]
[354790272,1740703837778,-10550.0,0.00015,2]
[354790273,1740703837791,-89459.67404923,0.00015,2]
[354790274,1740703837804,-3883.155,0.00015,2]
[354790275,1740703837818,-4676.235,0.00015,2]
[354790276,1740703837831,-26020.11775571,0.00015,2]
[354790277,1740703838042,-4651.32349493,0.00015,2]
[354790294,1740703840006,-64059.97061931,0.00015,2]
[354790297,1740703840018,-4119.58756554,0.00015,2]
[354790299,1740703840029,-266.70370585,0.00015,2]
[354790301,1740703840040,-5671.44444448,0.00015,2]
[354790312,1740703846176,-950.870895,0.00015,2]
[354790313,1740703846259,-627.83618023,0.00015,2]
[354790314,1740703846370,-278.52926999,0.00015,2]
[354790315,1740703846382,-3389.05672,0.00015,2]
[354790316,1740703864878,150.0,0.00014761,2]
[354790317,1740703865000,150.0,0.00014727,2]
[354790324,1740704146104,1000.0,0.00029213,30]
[354790325,1740704146814,1000.0,0.00029213,30]
[354790326,1740704147467,819.313174,0.00029213,30]
[354790330,1740704309658,289.86,0.000147,2]
[354790332,1740704348674,383.38334767,0.00014779,2]
[354790336,1740704557004,162.77,0.00014321,2]
[354790337,1740704607533,867.38108013,0.00029213,120]
[354790345,1740704945290,-150.0,0.00014999,5]
[354790570,1740705032135,-150.0,0.00014899,2]
[354790571,1740705032145,-300.0,0.00014899,2]
[354790572,1740705032155,-265.5559,0.000149,2]
[354790573,1740705032165,-1000.0,0.000149,2]
[354790574,1740705032176,-936.7712,0.000149,2]
[354790575,1740705032186,-12570.4379,0.000149,2]
[354790576,1740705032196,-23144.27672328,0.000149,2]
[354790577,1740705032206,-2262.87668869,0.000149,2]
[354790578,1740705032216,-314.00262588,0.000149,2]
[354790579,1740705032226,-1405.16920251,0.000149,2]
[354790580,1740705032238,-1005.04800563,0.00014999,5]
[354790581,1740705032247,-305.86399587,0.00014999,5]
[354790595,1740705038068,-899.28626597,0.00014999,5]
[354790596,1740705038078,-8505.77373312,0.00015,2]
[354790597,1740705038250,-123.8314486,0.00015,2]
[354790614,1740705040258,-567.5069732,0.00015,2]
[354790615,1740705040270,-4651.2884939,0.00015,2]
[354790616,1740705040281,-367.03000001,0.00015,2]
[354790617,1740705040537,-2093.11451633,0.00015,2]
[354790655,1740705163561,150.0,0.000148,2]
[354790656,1740705193304,2000.0,0.00014681,2]
[354790657,1740705193705,2000.0,0.00014682,2]
[354790658,1740705204349,500.0,0.00014681,2]
[354790659,1740705204717,500.0,0.00014682,2]
[354790660,1740705356256,-2000.0,0.0002,15]
[354790661,1740705509667,231.888,0.000147,2]
[354790662,1740705792617,2000.0,0.00014582,2]
[354790663,1740705801686,500.0,0.00014582,2]
[354790664,1740705825563,-150.0,0.00014899,2]
[354790665,1740705825584,-150.0,0.00014899,2]
[354790666,1740705825606,-7914.1652,0.000149,2]
[354790667,1740705825627,-1264.65228225,0.000149,2]
[354790668,1740705825647,-1596.9972,0.000149,2]
[354790669,1740705825669,-150.0,0.00014936,2]
[354790670,1740705825693,-43239.26682509,0.00015,2]
[354790671,1740705825719,-694864.54207438,0.00015,2]
[354790672,1740705825741,-44929.37641828,0.00015,2]
[354790673,1740705851554,-5000.0,0.00015,2]
[354790674,1740705871294,1000.0,0.00029213,30]
[354790682,1740705919747,4759.00341792,9e-05,2]
[354790685,1740705929834,16891.60366352,0.00011,2]
[354790686,1740705936651,8929.94892043,8e-05,2]
[354790711,1740705966461,333.00399433,8e-05,2]
[354790725,1740706034175,205.0,9.8e-05,2]
[354790726,1740706038313,5127.38125458,0.0001305,2]
[354790727,1740706038866,249.47164694,0.000101,2]
[354790732,1740706052525,3500.0,0.00013,2]
[354790734,1740706071087,4246.33873223,0.00013,2]
[354790735,1740706073538,116178.95924001,0.000139,2]
[354790736,1740706080008,31823.79516387,0.00014,2]
[354790737,1740706089177,18730.38334189,9.9e-05,2]
[354790738,1740706089204,5547.45591067,9.9e-05,2]
[354790739,1740706104852,1997.69804466,0.00014,2]
[354790740,1740706110556,1236.1416,9.828e-05,2]
[354790744,1740706122388,198.80360409,0.00010136,2]
[354790963,1740706207974,-676.1592,0.000149,2]
[354790964,1740706208001,-1138.18705407,0.000149,2]
[354790965,1740706208025,-156.59159307,0.00014973,2]
[354790966,1740706208049,-29.06215286,0.00014973,2]
[354790973,1740706232344,-470.93784714,0.00014973,2]
[354790975,1740706232355,-500.0,0.00014999,2]
[354790977,1740706232365,-580.64569231,0.00014999,2]
[354790980,1740706232375,-154.326431,0.00015,2]
[354790983,1740706232384,-151.0,0.00015,2]
[354790986,1740706232394,-151.0,0.00015,2]
[354790990,1740706232404,-151.0,0.00015,2]
[354790992,1740706232414,-151.0,0.00015,2]
[354790995,1740706232424,-151.0,0.00015,2]
[354790997,1740706232434,-151.0,0.00015,2]
[354791000,1740706232444,-151.0,0.00015,2]
[354791002,1740706232454,-151.0,0.00015,2]
[354791005,1740706232464,-151.0,0.00015,2]
[354791007,1740706232473,-1125.73105151,0.00015,2]
[354791020,1740706232595,-427.18935026,0.00015,2]
[354791022,1740706232607,-758.41126068,0.00015,2]
[354791023,1740706232619,-507.145,0.00015,2]
[354791025,1740706232631,-251.370003,0.00015,2]
[354791026,1740706232711,-1925.34,0.00015,2]
[354791033,1740706238415,-338.98338766,0.00015,2]
[354791034,1740706238562,-2762.48,0.00015,2]
[354791036,1740706238744,-302.307,0.000149,2]
[354791037,1740706238755,-454.14659751,0.00015,2]
[354791039,1740706238770,-4821.67992046,0.00015,2]
[354791049,1740706240574,-3798.462925,0.00015,2]
[354791050,1740706242529,-1664.32266,0.00015,2]
[354791051,1740706242543,-1200.0,0.00015,2]
[354791052,1740706242612,-4242.13759319,0.00015,2]
[354791054,1740706242759,-24168.28205951,0.00015,2]
[354791055,1740706242781,-418.25345406,0.00015,2]
[354791056,1740706242794,-786.49262927,0.00015,2]
[354791078,1740706246186,-326.66885266,0.00015,2]
[354791081,1740706246945,-833.8,0.00015,2]
[354791082,1740706246959,-340.48249996,0.00015,2]
[354791083,1740706247407,-2050.59865245,0.00015,2]
[354791084,1740706247420,-26072.8699385,0.00015,2]
[354791085,1740706247448,-654.82661514,0.00015,2]
[354791086,1740706247618,-5344.0,0.00015,2]
[354791087,1740706247631,-90523.34299577,0.00015,2]
[354791088,1740706247646,-643.75336479,0.00015,2]
[354791089,1740706247659,-2258.93958253,0.00015,2]
[354791098,1740706434255,545.02803254,0.000148,2]
[354791099,1740706450293,4999.99999801,0.00012,2]
[354791100,1740706489061,-2000.0,0.0002,15]
[354791113,1740706682920,20000.0,0.0002,30]
[354791114,1740706709680,233.46,0.000147,2]
[354791115,1740706792199,50000.0,0.0002,30]
[354791118,1740707024263,50000.0,0.0002,30]
[354791835,1740707216437,-324.75351596,0.0001488,2]
[354791836,1740707216464,-401.4295,0.000149,2]
[354791837,1740707216490,-1064.03768435,0.000149,2]
[354791838,1740707216517,-2245.63308777,0.000149,2]
[354791839,1740707216541,-857.4307,0.000149,2]
[354791840,1740707216566,-1091.5306,0.000149,2]
[354791841,1740707216595,-500.0,0.00014973,2]
[354791842,1740707216620,-1186.0,0.00015,2]
[354791843,1740707216646,-22329.18491192,0.00015,2]
[354791928,1740707269044,-956.0,0.00015,2]
[354791929,1740707269074,-49044.0,0.00015,2]
[354791930,1740707270241,-50000.0,0.00015,2]
[354791931,1740707271487,-20197.12589286,0.00015,2]
[354791932,1740707271514,-29802.87410714,0.00015,2]
[354791933,1740707272681,-50000.0,0.00015,2]
[354791934,1740707274359,-50000.0,0.00015,2]
[354791935,1740707316809,-500.0,0.00014999,2]
[354791936,1740707316835,-403.30979018,0.00014999,2]
[354791937,1740707316858,-863.0,0.00015,2]
[354791938,1740707316883,-66738.69020982,0.00015,2]
[354791939,1740707326487,166.3214301,0.00014699,2]
[354791967,1740707371536,166.3214302,0.00014699,2]
[354791988,1740707416475,166.3214302,0.00014699,2]
[354792438,1740707431514,-2021.06977902,0.000149,2]
[354792441,1740707431524,-684.2196,0.000149,2]
[354792443,1740707431534,-957.63391587,0.000149,2]
[354792444,1740707431544,-500.0,0.00014973,2]
[354792446,1740707431553,-255.66512151,0.00014999,2]
[354792448,1740707431563,-12897.40469782,0.00015,2]
[354792450,1740707431575,-82803.60756975,0.00015,2]
[354792453,1740707431587,-250.0,0.00015,2]
[354792455,1740707431599,-4158.38757819,0.00015,2]
[354792457,1740707431610,-551.94843752,0.00015,2]
[354792459,1740707431622,-16600.0,0.00015,2]
[354792464,1740707431666,-6699.4060071,0.00015,2]
[354792468,1740707431792,-268.3220004,0.00015,2]
[354792469,1740707431804,-4120.77367826,0.00015,2]
[354792510,1740707437361,-327.31354053,0.000149,2]
[354792511,1740707437371,-786.3955278,0.00015,2]
[354792517,1740707437866,-4977.51339686,0.00015,2]
[354792518,1740707437877,-298.30634615,0.00015,2]
[354792520,1740707438262,-330.48015001,0.00015,2]
[354792521,1740707438274,-165108.13869183,0.00015,2]
[354792522,1740707438286,-891.23000001,0.00015,2]
[354792523,1740707438322,-1315.19835964,0.00015,2]
[354792524,1740707438485,-1650.32,0.00015,2]
[354792551,1740707439484,-2212.13122598,0.00015,2]
[354792552,1740707439496,-2196.79459999,0.00015,2]
[354792783,1740707443069,-346443.12964229,0.00015,2]
[354792787,1740707443080,-19431.71794049,0.00015,2]
[354792791,1740707443092,-4901.12368796,0.00015,2]
[354792795,1740707443103,-723.26128111,0.00015,2]
[354792800,1740707443118,-8812.81152607,0.00015,2]
[354792803,1740707443130,-9337.34790509,0.00015,2]
[354792807,1740707443141,-16460.87980423,0.00015,2]
[354792811,1740707443155,-1100.0,0.00015,2]
[354792814,1740707443166,-13250.0000001,0.00015,2]
[354792817,1740707443177,-345.95817802,0.00015,2]
[354792821,1740707443188,-1236.235,0.00015,2]
[354792851,1740707443347,-332.811,0.00015,2]
[354792854,1740707443358,-1000.49431103,0.00015,2]
[354792856,1740707443369,-9328.4592942,0.00015,2]
[354792857,1740707443380,-1020.83016652,0.00015,2]
[354792858,1740707443391,-62917.30898267,0.00015,2]
[354792859,1740707443401,-1000.0,0.00015,2]
[354792860,1740707443410,-1000.0,0.00015,2]
[354792862,1740707443419,-1000.0,0.00015,2]
[354792864,1740707443427,-1000.0,0.00015,2]
[354792866,1740707443440,-1000.0,0.00015,2]
[354792868,1740707443449,-1000.0,0.00015,2]
[354792870,1740707443459,-1000.0,0.00015,2]
[354792872,1740707443470,-1000.0,0.00015,2]
[354792874,1740707443480,-1000.0,0.00015,2]
[354792876,1740707443489,-1002.0,0.00015,2]
[354792878,1740707443502,-1000.0,0.00015,2]
[354792880,1740707443511,-914.0,0.00015,2]
[354792882,1740707443520,-150.0,0.00015,2]
[354792884,1740707443529,-615.0,0.00015041,2]
[354792886,1740707443538,-616.35,0.0001561,2]
[354792888,1740707443547,-153.770828,0.00016111,2]
[354792890,1740707443557,-151.0,0.00016111,2]
[354792892,1740707443566,-151.0,0.00016111,2]
[354792894,1740707443576,-151.0,0.00016111,2]
[354792896,1740707443586,-151.0,0.00016111,2]
[354792898,1740707443596,-151.0,0.00016111,2]
[354792900,1740707443605,-151.0,0.00016111,2]
[354792902,1740707443614,-151.0,0.00016111,2]
[354792904,1740707443623,-151.0,0.00016111,2]
[354792906,1740707443632,-153.271418,0.00016111,2]
[354792908,1740707443641,-151.0,0.00016111,2]
[354792910,1740707443650,-212.044591,0.00016111,2]
[354792912,1740707443660,-500.0,0.00016111,2]
[354792914,1740707443669,-500.0,0.00016111,2]
[354792917,1740707443678,-500.0,0.00016111,2]
[354792920,1740707443687,-500.0,0.00016111,2]
[354792922,1740707443696,-500.0,0.00016111,2]
[354792924,1740707443705,-500.0,0.00016111,2]
[354792926,1740707443715,-500.0,0.00016111,2]
[354792928,1740707443724,-500.0,0.00016111,2]
[354792930,1740707443733,-500.0,0.00016111,2]
[354792932,1740707443743,-500.0,0.00016111,2]
[354792935,1740707443752,-500.0,0.00016111,2]
[354792937,1740707443762,-500.0,0.00016111,2]
[354792938,1740707443772,-500.0,0.00016111,2]
[354792940,1740707443782,-500.0,0.00016111,2]
[354792943,1740707443791,-500.0,0.00016111,2]
[354792944,1740707443800,-500.0,0.00016111,2]
[354792946,1740707443810,-151.0,0.00016111,2]
[354792950,1740707443819,-500.0,0.00016111,2]
[354792952,1740707443827,-500.0,0.00016111,2]
[354792955,1740707443836,-500.0,0.00016111,2]
[354792957,1740707443845,-500.0,0.00016111,2]
[354792959,1740707443856,-500.0,0.00016111,2]
[354792961,1740707443865,-500.0,0.00016111,2]
[354792963,1740707443874,-500.0,0.00016111,2]
[354792965,1740707443883,-500.0,0.00016111,2]
[354792967,1740707443893,-500.0,0.00016111,2]
[354792969,1740707443902,-500.0,0.00016111,2]
[354792971,1740707443911,-500.0,0.00016111,2]
[354792973,1740707443920,-500.0,0.00016111,2]
[354792975,1740707443929,-500.0,0.00016111,2]
[354792977,1740707443938,-500.0,0.00016111,2]
[354792979,1740707443947,-500.0,0.00016111,2]
[354792981,1740707443956,-500.0,0.00016111,2]
[354792983,1740707443968,-500.0,0.00016111,2]
[354792985,1740707443977,-500.0,0.00016111,2]
[354792987,1740707443986,-500.0,0.00016111,2]
[354792988,1740707443995,-500.0,0.00016111,2]
[354792989,1740707444004,-500.0,0.00016111,2]
[354792990,1740707444014,-500.0,0.00016111,2]
[354792991,1740707444023,-500.0,0.00016111,2]
[354792992,1740707444033,-500.0,0.00016111,2]
[354792993,1740707444042,-500.0,0.00016111,2]
[354792994,1740707444052,-500.0,0.00016111,2]
[354792995,1740707444061,-500.0,0.00016111,2]
[354792996,1740707444070,-500.0,0.00016111,2]
[354792997,1740707444080,-500.0,0.00016111,2]
[354792998,1740707444088,-500.0,0.00016111,2]
[354793000,1740707444097,-500.0,0.00016111,2]
[354793002,1740707444107,-500.0,0.00016111,2]
[354793004,1740707444116,-500.0,0.00016111,2]
[354793006,1740707444125,-500.0,0.00016111,2]
[354793008,1740707444134,-500.0,0.00016111,2]
[354793010,1740707444143,-500.0,0.00016111,2]
[354793012,1740707444152,-500.0,0.00016111,2]
[354793014,1740707444164,-500.0,0.00016111,2]
[354793016,1740707444173,-500.0,0.00016111,2]
[354793018,1740707444182,-500.0,0.00016111,2]
[354793020,1740707444192,-500.0,0.00016111,2]
[354793022,1740707444201,-500.0,0.00016111,2]
[354793024,1740707444210,-500.0,0.00016111,2]
[354793026,1740707444221,-500.0,0.00016111,2]
[354793029,1740707444230,-500.0,0.00016111,2]
[354793032,1740707444240,-500.0,0.00016111,2]
[354793034,1740707444249,-500.0,0.00016111,2]
[354793035,1740707444259,-500.0,0.00016111,2]
[354793037,1740707444268,-500.0,0.00016111,2]
[354793039,1740707444278,-500.0,0.00016111,2]
[354793042,1740707444287,-500.0,0.00016111,2]
[354793044,1740707444297,-500.0,0.00016111,2]
[354793046,1740707444306,-154.100591,0.00016111,2]
[354793049,1740707444315,-500.0,0.00016111,2]
[354793052,1740707444325,-500.0,0.00016111,2]
[354793056,1740707444336,-500.0,0.00016111,2]
[354793058,1740707444346,-500.0,0.00016111,2]
[354793060,1740707444355,-500.0,0.00016111,2]
[354793062,1740707444364,-500.0,0.00016111,2]
[354793064,1740707444374,-500.0,0.00016111,2]
[354793067,1740707444382,-500.0,0.00016111,2]
[354793070,1740707444392,-500.0,0.00016111,2]
[354793073,1740707444401,-500.0,0.00016111,2]
[354793076,1740707444410,-500.0,0.00016111,2]
[354793079,1740707444419,-500.0,0.00016111,2]
[354793082,1740707444428,-500.0,0.00016111,2]
[354793085,1740707444437,-500.0,0.00016111,2]
[354793088,1740707444446,-500.0,0.00016111,2]
[354793091,1740707444456,-500.0,0.00016111,2]
[354793093,1740707444465,-500.0,0.00016111,2]
[354793112,1740707444615,-500.0,0.00016111,2]
[354793115,1740707444659,-500.0,0.00016111,2]
[354793117,1740707444669,-500.0,0.00016111,2]
[354793119,1740707444678,-500.0,0.00016111,2]
[354793121,1740707444687,-500.0,0.00016111,2]
[354793123,1740707444697,-500.0,0.00016111,2]
[354793125,1740707444706,-500.0,0.00016111,2]
[354793127,1740707444715,-500.0,0.00016111,2]
[354793129,1740707444725,-500.0,0.00016111,2]
[354793131,1740707444734,-500.0,0.00016111,2]
[354793133,1740707444743,-500.0,0.00016111,2]
[354793134,1740707444752,-500.0,0.00016111,2]
[354793136,1740707444761,-500.0,0.00016111,2]
[354793139,1740707444771,-500.0,0.00016111,2]
[354793141,1740707444781,-500.0,0.00016111,2]
[354793143,1740707444790,-500.0,0.00016111,2]
[354793145,1740707444799,-500.0,0.00016111,2]
[354793147,1740707444808,-500.0,0.00016111,2]
[354793149,1740707444818,-500.0,0.00016111,2]
[354793151,1740707444827,-500.0,0.00016111,2]
[354793153,1740707444837,-500.0,0.00016111,2]
[354793155,1740707444846,-500.0,0.00016111,2]
[354793157,1740707444855,-500.0,0.00016111,2]
[354793159,1740707444865,-500.0,0.00016111,2]
[354793161,1740707444874,-500.0,0.00016111,2]
[354793163,1740707444883,-500.0,0.00016111,2]
[354793164,1740707444892,-500.0,0.00016111,2]
[354793166,1740707444901,-500.0,0.00016111,2]
[354793168,1740707444910,-500.0,0.00016111,2]
[354793170,1740707444919,-500.0,0.00016111,2]
[354793172,1740707444928,-500.0,0.00016111,2]
[354793174,1740707444937,-500.0,0.00016111,2]
[354793176,1740707444946,-558.0,0.00016111,2]
[354793178,1740707444956,-500.0,0.00016111,2]
[354793180,1740707444964,-500.0,0.00016111,2]
[354793182,1740707444974,-500.0,0.00016111,2]
[354793184,1740707444983,-524.0,0.00016111,2]
[354793186,1740707444992,-500.0,0.00016111,2]
[354793188,1740707445001,-500.0,0.00016111,2]
[354793190,1740707445010,-500.0,0.00016111,2]
[354793192,1740707445019,-500.0,0.00016111,2]
[354793194,1740707445028,-500.0,0.00016111,2]
[354793196,1740707445039,-500.0,0.00016111,2]
[354793198,1740707445049,-500.0,0.00016111,2]
[354793200,1740707445058,-500.0,0.00016111,2]
[354793201,1740707445067,-500.0,0.00016111,2]
[354793202,1740707445076,-500.0,0.00016111,2]
[354793203,1740707445086,-500.0,0.00016111,2]
[354793205,1740707445095,-500.0,0.00016111,2]
[354793206,1740707445104,-500.0,0.00016111,2]
[354793208,1740707445114,-151.439977,0.00016111,2]
[354793210,1740707445123,-500.0,0.00016111,2]
[354793212,1740707445132,-500.0,0.00016111,2]
[354793214,1740707445142,-500.0,0.00016111,2]
[354793216,1740707445151,-500.0,0.00016111,2]
[354793218,1740707445161,-500.0,0.00016111,2]
[354793220,1740707445170,-500.0,0.00016111,2]
[354793223,1740707445179,-500.0,0.00016111,2]
[354793225,1740707445189,-500.0,0.00016111,2]
[354793228,1740707445199,-500.0,0.00016111,2]
[354793230,1740707445218,-500.0,0.00016111,2]
[354793232,1740707445230,-297.943361,0.00016111,2]
[354793234,1740707445240,-500.0,0.00016111,2]
[354793236,1740707445250,-500.0,0.00016111,2]
[354793238,1740707445260,-500.0,0.00016111,2]
[354793240,1740707445270,-500.0,0.00016111,2]
[354793242,1740707445279,-500.0,0.00016111,2]
[354793244,1740707445288,-500.0,0.00016111,2]
[354793246,1740707445297,-500.0,0.00016111,2]
[354793248,1740707445307,-500.0,0.00016111,2]
[354793250,1740707445316,-500.0,0.00016111,2]
[354793252,1740707445326,-500.0,0.00016111,2]
[354793254,1740707445337,-500.0,0.00016111,2]
[354793256,1740707445346,-500.0,0.00016111,2]
[354793260,1740707445355,-500.0,0.00016111,2]
[354793263,1740707445364,-500.0,0.00016111,2]
[354793266,1740707445374,-500.0,0.00016111,2]
[354793269,1740707445383,-500.0,0.00016111,2]
[354793272,1740707445392,-500.0,0.00016111,2]
[354793275,1740707445402,-500.0,0.00016111,2]
[354793277,1740707445411,-500.0,0.00016111,2]
[354793280,1740707445420,-500.0,0.00016111,2]
[354793282,1740707445429,-500.0,0.00016111,2]
[354793286,1740707445438,-500.0,0.00016111,2]
[354793288,1740707445447,-500.0,0.00016111,2]
[354793291,1740707445456,-500.0,0.00016111,2]
[354793294,1740707445465,-500.0,0.00016111,2]
[354793297,1740707445479,-500.0,0.00016111,2]
[354793301,1740707445490,-500.0,0.00016111,2]
[354793303,1740707445500,-500.0,0.00016111,2]
[354793306,1740707445509,-500.0,0.00016111,2]